bitfinex-derivatives/quotes_ETHF0:USTF0_20250531
["timestamp","ask_amount","ask_price","bid_price","bid_amount"]
[1748655534527,0.2796904,2500.3,2499.5,0.79986]
[1748655534728,0.2796904,2500.3,2499.7,0.00600288]
[1748655534729,0.00600288,2500.1,2499.7,0.00600288]
[1748655534933,3.21380288,2500.1,2499.7,0.00600288]
[1748655535135,0.00600288,2500.1,2499.7,0.00600288]
[1748655535337,0.00600288,2500.1,2500.0,0.7997]
[1748655535947,0.07155339,2499.9,2499.7,3.21380288]
[1748655536240,0.07155339,2499.9,2499.8,0.79976]
[1748655536750,5.07155339,2499.9,2499.7,0.00600288]
[1748655536941,2.6541,2499.8,2499.3,1.57146049]
[1748655537145,3.2078,2499.7,2499.3,1.57146049]
[1748655537445,2.6541,2499.6,2499.2,0.79992]
[1748655537747,2.6541,2499.6,2499.1,3.2078]
[1748655538043,2.6541,2499.6,2499.1,0.00600288]
[1748655539043,2.6541,2499.6,2499.5,0.79986]
[1748655539244,0.00600288,2500.1,2499.4,3.2078]
[1748655539449,0.00600288,2500.1,2499.6,3.2078]
[1748655539641,0.00600288,2500.1,2499.8,0.79976]
[1748655539841,0.00600288,2500.1,2499.6,3.2078]
[1748655540142,0.00600288,2500.1,2499.1,0.00600288]
[1748655540143,3.2078,2499.8,2499.2,3.2078]
[1748655540342,3.2078,2499.3,2499.1,0.00600288]
[1748655540851,2.4355,2499.2,2499.1,0.00600288]
[1748655541241,7.4355,2499.2,2499.1,0.00600288]
[1748655541546,7.4355,2499.2,2498.1,3.2078]
[1748655541750,3.2078,2499.0,2498.1,3.2078]
[1748655542048,3.2078,2499.1,2498.5,0.80017]
[1748655542239,3.2078,2498.7,2498.2,3.2078]
[1748655542639,3.21380288,2498.7,2498.2,3.21380288]
[1748655542836,3.21380288,2498.7,2498.2,0.00600288]
[1748655543136,0.80024,2498.3,2498.2,0.00600288]
[1748655543541,5.0,2498.3,2498.2,0.00600288]
[1748655543748,3.2078,2498.4,2497.6,3.2078]
[1748655544043,4.00813,2498.1,2497.5,0.80049]
[1748655544252,3.2078,2498.1,2497.0,3.2078]
[1748655544449,10.0944,2498.6,2497.0,3.2078]
[1748655544450,3.2078,2497.5,2497.1,0.80061]
[1748655544652,3.2078,2497.5,2497.3,0.80054]
[1748655544945,3.2078,2497.8,2497.2,0.00399616]
[1748655545148,3.2078,2497.4,2497.3,0.80056]
[1748655545343,3.2078,2497.4,2497.2,0.00399616]
[1748655545647,8.2078,2497.4,2497.2,0.00399616]
[1748655546060,3.2078,2497.8,2497.2,0.00399616]
[1748655546248,3.2078,2497.8,2497.7,0.80043]
[1748655546549,3.2078,2498.1,2497.8,0.80038]
[1748655546744,3.2078,2498.1,2497.3,3.2078]
[1748655547048,2.6157,2498.0,2497.3,3.2078]
[1748655547249,2.6157,2498.0,2497.6,0.80045]
[1748655547548,0.2001,2497.9,2497.6,0.80045]
[1748655547742,5.8235,2497.8,2497.2,0.00399616]
[1748655547944,0.80056,2497.3,2497.2,0.00399616]
[1748655548142,3.2078,2497.4,2497.2,0.00399616]
[1748655548344,2.6157,2497.3,2497.2,0.80458616]
[1748655548648,3.2078,2497.8,2497.7,0.80043]
[1748655548845,2.6157,2497.8,2497.7,0.80043]
[1748655549344,3.2078,2498.4,2497.7,3.2078]
[1748655549551,2.5411,2498.3,2497.9,0.80035]
[1748655549739,2.5411,2498.3,2497.7,3.2078]
[1748655550052,0.00600288,2498.7,2498.0,3.2078]
[1748655550238,0.00600288,2498.7,2498.5,0.80015]
[1748655550445,0.00600288,2498.7,2498.1,3.2078]
[1748655550641,0.80022,2498.4,2498.2,3.2078]
[1748655550851,5.7489,2498.3,2497.7,3.2078]
[1748655551051,2.5411,2498.3,2497.7,3.2078]
[1748655551450,2.5411,2498.3,2497.8,2.4962]
[1748655551644,2.5411,2498.3,2497.9,0.80037]
[1748655551950,2.5411,2498.3,2498.0,3.2078]
[1748655552150,2.5411,2498.3,2497.7,3.2078]
[1748655552352,3.2078,2498.1,2497.7,3.2078]
[1748655552539,3.2078,2497.8,2497.3,2.35719074]
[1748655552745,4.00831,2497.5,2497.3,2.35719074]
[1748655552948,2.4858,2497.4,2497.3,2.35719074]
[1748655553151,0.80056,2497.3,2497.2,0.00399616]
[1748655553348,7.4858,2497.4,2497.2,0.00399616]
[1748655553545,2.4858,2497.4,2497.2,0.00399616]
[1748655553953,2.4858,2497.4,2497.3,0.80056]
[1748655554354,2.4858,2497.4,2497.2,0.00399616]
[1748655554553,3.28634,2497.4,2497.2,0.00399616]
[1748655554753,0.80056,2497.3,2497.2,0.00399616]
[1748655554952,2.4858,2497.3,2497.2,0.80458616]
[1748655555152,2.4858,2497.3,2497.2,0.00399616]
[1748655555562,3.28636,2497.3,2497.2,0.00399616]
[1748655555850,7.4858,2497.3,2497.2,0.00399616]
[1748655556051,8.28636,2497.3,2497.2,0.00399616]
[1748655556247,7.4858,2497.3,2497.2,0.00399616]
[1748655556551,2.4858,2497.3,2497.2,0.00399616]
[1748655557354,8.27994335,2497.3,2497.2,0.00399616]
[1748655557554,2.47938335,2497.3,2497.2,0.00399616]
[1748655558148,3.27994335,2497.3,2497.2,0.00399616]
[1748655558354,11.48774335,2497.3,2497.2,0.00399616]
[1748655558663,11.48774335,2497.3,2497.2,6.16e-06]
[1748655559354,10.68718335,2497.3,2497.2,6.16e-06]
[1748655559561,2.47938335,2497.3,2497.2,0.80059616]
[1748655559748,10.68718335,2497.3,2497.2,6.16e-06]
[1748655559949,3.27994335,2497.3,2497.2,6.16e-06]
[1748655560155,6.48774335,2497.3,2497.2,6.16e-06]
[1748655560365,8.27994335,2497.3,2497.2,6.16e-06]
[1748655561065,11.48774335,2497.3,2497.2,6.16e-06]
[1748655561454,5.68718335,2497.3,2497.2,6.16e-06]
[1748655561659,11.48774335,2497.3,2497.2,6.16e-06]
[1748655563354,14.69014335,2497.3,2495.7,3.50026]
[1748655563555,3.2078,2496.0,2495.5,3.2078]
[1748655564065,0.80096,2496.1,2495.8,0.80103]
[1748655564261,3.2078,2496.2,2495.5,3.2078]
[1748655564457,0.00600288,2496.1,2495.5,3.2078]
[1748655564959,3.2078,2496.0,2494.8,2.35719074]
[1748655565166,3.2078,2496.0,2494.9,2.5561]
[1748655565358,0.80695288,2496.1,2495.8,0.80104]
[1748655565558,0.00600288,2496.1,2495.7,0.80106]
[1748655565759,0.00600288,2496.1,2495.4,2.5561]
[1748655566065,3.2078,2496.0,2495.4,2.5561]
[1748655566261,0.80106,2495.8,2495.4,2.5561]
[1748655566565,0.80119,2495.4,2495.0,0.80127]
[1748655566867,0.80126,2495.2,2494.8,0.80135]
[1748655567067,3.2078,2495.4,2494.9,2.5561]
[1748655567266,3.2078,2495.1,2494.9,3.35742]
[1748655567561,3.2078,2495.5,2494.9,2.5561]
[1748655567761,3.2078,2495.8,2494.9,2.5561]
[1748655568158,4.00886,2495.8,2494.9,2.5561]
[1748655568361,4.00886,2495.8,2495.3,0.80118]
[1748655568567,3.2078,2495.8,2495.4,0.80116]
[1748655568766,3.2078,2495.9,2494.9,2.5561]
[1748655569266,0.80113,2495.6,2495.2,0.80123]
[1748655569462,3.2078,2495.9,2494.9,2.5561]
[1748655569666,3.2078,2495.6,2495.1,0.80124]
[1748655569868,0.80114,2495.5,2494.9,2.5561]
[1748655570262,3.2078,2495.9,2495.1,3.2078]
[1748655570564,3.2078,2495.9,2494.9,2.5561]
[1748655570565,3.2078,2495.9,2495.7,0.80106]
[1748655570770,4.00883,2495.9,2495.6,0.80109]
[1748655571069,3.2078,2495.9,2495.3,3.2078]
[1748655571263,3.2078,2495.9,2495.8,0.80104]
[1748655571572,0.00600288,2496.1,2496.0,0.80098]
[1748655571963,0.00600288,2496.1,2495.9,0.80099]
[1748655572158,0.00600288,2496.1,2496.0,0.80098]
[1748655572772,0.20630288,2496.1,2496.0,0.80098]
[1748655573771,0.20630288,2496.1,2495.6,2.5311]
[1748655574071,0.80104,2495.9,2495.6,2.5311]
[1748655574265,0.801,2496.0,2495.6,3.3322]
[1748655574460,0.20630288,2496.1,2495.6,2.5311]
[1748655574666,0.20630288,2496.1,2495.9,0.80099]
[1748655574866,0.20630288,2496.1,2495.5,3.2078]
[1748655575069,0.20630288,2496.1,2496.0,0.80098]
[1748655575673,0.20630288,2496.1,2495.9,0.80101]
[1748655575970,0.20630288,2496.1,2496.0,0.80098]
[1748655576869,0.20630288,2496.1,2495.6,2.4382]
[1748655577062,2.4904,2496.0,2495.6,2.4382]
[1748655577369,0.20630288,2496.1,2496.0,0.80098]
[1748655577576,0.20630288,2496.1,2495.6,2.4382]
[1748655577770,0.20630288,2496.1,2496.0,0.80098]
[1748655578167,4.00847,2497.0,2496.2,2.00225]
[1748655578469,2.5469,2497.7,2496.5,3.2078]
[1748655578470,2.4904,2497.3,2496.5,3.2078]
[1748655578670,2.4904,2497.3,2496.6,2.6731]
[1748655578871,2.4904,2497.3,2497.0,0.80066]
[1748655579067,2.57048649,2497.3,2496.9,0.00600288]
[1748655579769,4.00846,2497.0,2496.9,0.00600288]
[1748655580166,8.2078,2497.0,2496.1,2.35719074]
[1748655580368,0.80091,2496.2,2496.1,2.35719074]
[1748655580576,3.2078,2496.5,2496.2,0.8009]
[1748655580770,3.2078,2496.5,2496.1,2.35719074]
[1748655580972,5.8005,2496.8,2496.2,2.7031]
[1748655581476,4.00862,2496.5,2496.2,3.504]
[1748655581669,0.80092,2496.2,2495.9,0.80099]
[1748655581870,0.2001,2496.9,2495.9,2.35719074]
[1748655581871,3.2078,2496.4,2495.9,2.35719074]
[1748655582069,3.2078,2496.4,2496.0,2.7031]
[1748655582362,3.39347,2496.7,2496.0,2.7031]
[1748655582565,2.5927,2496.7,2496.0,2.7031]
[1748655582771,5.8005,2496.7,2496.0,2.7031]
[1748655583076,2.5927,2496.7,2496.1,2.00238]
[1748655583280,3.2078,2496.5,2496.0,2.7031]
[1748655583580,2.5927,2496.7,2496.4,0.80085]
[1748655583782,2.5927,2496.7,2496.6,0.80079]
[1748655583986,2.5927,2496.7,2496.1,3.2078]
[1748655583987,5.8005,2496.7,2496.1,3.2078]
[1748655584279,5.8005,2496.7,2496.0,2.7031]
[1748655584483,3.2078,2496.4,2496.3,0.80088]
[1748655584881,2.5927,2496.7,2496.6,0.80079]
[1748655585089,0.2001,2496.9,2496.8,0.80072]
[1748655585485,0.2001,2496.9,2496.7,0.80074]
[1748655585790,0.2001,2496.9,2496.8,0.80072]
[1748655586285,0.08008649,2497.3,2497.2,0.80059]
[1748655586477,2.6675,2498.0,2497.1,5.20931]
[1748655586678,3.2078,2498.1,2498.0,0.80034]
[1748655586993,4.00813,2498.1,2497.2,5.658]
[1748655587182,3.2078,2498.1,2498.0,0.80034]
[1748655587383,2.6675,2498.4,2497.8,0.80038]
[1748655587594,0.00600288,2498.3,2497.8,0.00600288]
[1748655587787,0.80037,2497.9,2497.8,0.00600288]
[1748655588286,5.80037,2497.9,2497.8,0.00600288]
[1748655588481,0.80037,2497.9,2497.8,0.00600288]
[1748655588681,3.46784,2498.0,2497.8,0.00600288]
[1748655588986,3.2078,2498.1,2497.8,0.00600288]
[1748655589187,0.80034,2498.0,2497.8,0.00600288]
[1748655589392,2.6393,2498.0,2497.8,0.00600288]
[1748655590092,3.43965,2498.0,2497.8,0.00600288]
[1748655590391,2.6393,2498.0,2497.8,0.00600288]
[1748655590787,3.2078,2498.1,2497.8,0.00600288]
[1748655590982,0.80032,2498.1,2497.8,0.80638288]
[1748655591290,2.6393,2498.2,2497.8,0.80638288]
[1748655591291,2.6393,2498.2,2497.8,0.00600288]
[1748655591588,0.00600288,2498.3,2498.0,0.80034]
[1748655591789,2.5216,2498.2,2498.0,0.80034]
[1748655591987,3.32187,2498.2,2497.9,0.80035]
[1748655592485,2.5216,2498.2,2497.8,0.00600288]
[1748655592987,2.5216,2498.2,2498.1,0.80031]
[1748655593197,0.00600288,2498.3,2498.2,0.80027]
[1748655594092,0.00600288,2498.3,2497.9,2.6978]
[1748655594891,0.00600288,2498.3,2498.2,0.80027]
[1748655595096,0.00600288,2498.3,2497.9,2.6978]
[1748655595398,0.80624288,2498.3,2498.0,0.80032]
[1748655595594,0.80032,2498.1,2497.8,4.01419288]
[1748655595895,0.80037,2497.9,2497.8,0.00600288]
[1748655596096,4.00817,2497.9,2497.8,0.00600288]
[1748655596287,8.2078,2497.9,2497.2,2.6051]
[1748655596486,0.80047,2497.6,2497.3,0.80054]
[1748655596696,2.5413,2497.8,2497.2,2.6051]
[1748655596889,0.80045,2497.7,2497.4,0.80051]
[1748655597091,3.2078,2497.9,2497.8,0.8004]
[1748655597887,2.5413,2498.1,2497.5,2.6051]
[1748655598089,3.34162,2498.1,2497.8,0.80037]
[1748655598289,2.5413,2498.1,2498.0,0.80034]
[1748655598693,2.5413,2498.1,2497.9,0.80036]
[1748655598897,2.5413,2498.1,2498.0,0.80034]
[1748655599296,4.01406288,2498.3,2498.2,0.80027]
[1748655599297,3.21380288,2498.3,2498.2,0.80027]
[1748655599691,0.00600288,2498.3,2498.2,0.80027]
[1748655600405,0.00600288,2498.3,2497.9,0.80036]
[1748655600599,0.00600288,2498.3,2497.8,2.6229]
[1748655600902,0.00600288,2498.3,2498.2,0.80027]
[1748655601701,3.21380288,2498.3,2497.8,2.35719074]
[1748655602104,4.00817,2497.9,2497.8,2.35719074]
[1748655602306,0.80043,2497.7,2497.6,2.35719074]
[1748655602500,5.80043,2497.7,2497.6,2.35719074]
[1748655602702,5.0,2497.7,2496.9,4.84649074]
[1748655602998,3.2078,2497.2,2497.1,0.80063]
[1748655603201,5.7746,2497.6,2497.1,0.80063]
[1748655603402,5.972,2498.2,2497.2,3.2078]
[1748655603598,5.20906,2497.5,2496.7,5.82]
[1748655603795,3.2078,2497.2,2496.5,5.907]
[1748655603998,2.5007,2497.1,2496.5,5.907]
[1748655604196,0.00600288,2497.0,2496.9,0.80066]
[1748655604603,0.00600288,2497.0,2496.5,8.26419074]
[1748655604902,0.80077,2496.7,2496.5,2.35719074]
[1748655605105,2.5007,2496.6,2496.5,0.80082]
[1748655605605,2.5007,2496.6,2496.4,2.35719074]
[1748655606004,7.5007,2496.6,2496.1,2.35719074]
[1748655606199,7.5007,2496.6,2495.3,9.4713257]
[1748655606200,3.2078,2496.4,2495.3,9.4713257]
[1748655606399,3.2078,2495.4,2495.3,1.98185909]
[1748655607007,3.2078,2495.4,2495.3,2.78305909]
[1748655607203,0.00600288,2495.6,2495.1,3.2078]
[1748655607404,0.00600288,2495.6,2495.5,0.80114]
[1748655608205,0.00600288,2495.6,2495.2,2.5534]
[1748655608511,3.2078,2495.3,2494.2,3.2078]
[1748655608705,3.2078,2494.6,2493.8,0.80166]
[1748655608907,3.2078,2494.0,2493.6,2.5534]
[1748655609108,3.2078,2493.7,2493.6,2.5534]
[1748655609412,3.2078,2493.7,2493.1,5.3361]
[1748655609614,3.2078,2493.7,2493.2,2.5534]
[1748655609807,3.2078,2493.7,2493.5,0.80177]
[1748655610111,3.2078,2493.7,2493.2,2.5534]
[1748655610310,2.6368,2493.9,2493.2,2.5534]
[1748655610510,3.2078,2493.7,2493.3,0.80183]
[1748655610710,2.6272,2493.6,2493.4,0.80181]
[1748655610910,5.835,2493.6,2493.4,0.80181]
[1748655611210,0.80764288,2494.0,2493.2,2.5534]
[1748655611211,3.2078,2493.9,2493.2,2.5534]
[1748655611410,5.835,2493.9,2493.2,2.5534]
[1748655611606,2.6272,2493.9,2493.2,2.5534]
[1748655611813,0.00600288,2494.0,2493.9,0.80165]
[1748655612005,0.00600288,2494.0,2493.3,3.2078]
[1748655612510,0.00600288,2494.0,2493.2,4.55804]
[1748655612809,0.00600288,2494.0,2493.9,0.80165]
[1748655613203,2.88e-06,2494.0,2493.9,9.00945]
[1748655613706,2.88e-06,2494.0,2493.9,49.40245]
[1748655614608,2.88e-06,2494.0,2493.9,3.2078]
[1748655614910,0.80165,2493.9,2493.8,0.71766945]
[1748655615104,3.55225,2493.9,2493.8,0.71766945]
[1748655615307,2.7506,2493.9,2493.8,1.51934945]
[1748655615510,2.7506,2493.9,2493.8,0.71766945]
[1748655615715,2.7506,2493.9,2493.8,1.51934945]
[1748655616416,2.7506,2493.9,2493.7,0.00601528]
[1748655616610,2.7506,2493.9,2493.7,0.72368473]
[1748655616911,2.88e-06,2494.0,2493.7,0.72368473]
[1748655617213,2.6154,2493.9,2493.7,1.52537473]
[1748655617408,2.6154,2493.9,2493.7,0.72368473]
[1748655617615,2.6154,2493.9,2493.7,1.52538473]
[1748655618017,2.6154,2493.9,2493.8,0.80168]
[1748655618215,2.6154,2493.9,2493.7,0.72368473]
[1748655618902,2.6154,2493.9,2493.8,0.80168]
[1748655619109,2.6154,2493.9,2493.7,0.72368473]
[1748655619308,2.88e-06,2494.0,2493.9,0.80165]
[1748655619616,2.88e-06,2494.0,2493.7,0.72368473]
[1748655619812,3.44013288,2494.0,2493.7,0.72368473]
[1748655620016,4.00948,2493.8,2493.7,0.72368473]
[1748655620217,0.80187,2493.3,2492.7,3.2078]
[1748655620416,6.64818,2493.2,2492.9,0.80197]
[1748655620618,5.8463,2493.2,2493.0,0.80193]
[1748655620813,3.2078,2493.5,2493.4,0.80181]
[1748655621019,3.2078,2493.9,2493.8,0.80168]
[1748655621219,3.2078,2493.9,2493.4,2.6512]
[1748655621412,2.88e-06,2494.0,2493.9,0.80165]
[1748655622511,3.2078,2494.6,2494.5,0.80146]
[1748655622911,4.53809,2495.6,2494.4,3.2078]
[1748655622912,3.2078,2495.3,2494.4,3.2078]
[1748655623115,3.2078,2495.3,2494.7,3.2078]
[1748655623420,2.7076,2495.2,2494.8,2.5625]
[1748655623615,2.71361528,2495.2,2494.8,2.5625]
[1748655623913,2.71361528,2495.2,2495.1,0.80126]
[1748655624118,3.2078,2495.7,2495.6,0.8011]
[1748655624311,2.00174,2496.9,2495.9,0.80101]
[1748655624312,2.7076,2496.0,2495.9,0.80101]
[1748655624921,3.2078,2496.3,2496.0,0.80096]
[1748655625111,3.2078,2496.3,2495.8,0.80101]
[1748655625112,2.4913,2496.2,2495.8,0.80101]
[1748655625318,2.4913,2496.2,2495.9,0.80701528]
[1748655625518,0.80097,2496.1,2495.9,0.00601528]
[1748655625720,5.6991,2496.0,2495.9,0.00601528]
[1748655626221,6.70038,2496.0,2495.9,0.00601528]
[1748655626521,5.8994,2496.0,2495.9,0.00601528]
[1748655626914,6.70038,2496.0,2495.9,0.00601528]
[1748655627218,12.90187,2496.0,2494.9,4.00912]
[1748655627413,3.2078,2495.3,2495.0,0.8013]
[1748655627616,2.4913,2495.2,2495.0,0.8013]
[1748655628015,2.4913,2495.2,2495.1,0.80127]
[1748655628411,2.4913,2495.2,2494.9,4.00912]
[1748655628825,2.4913,2495.2,2495.0,0.8013]
[1748655629319,3.29256,2495.2,2494.8,3.35225]
[1748655629516,2.4913,2495.2,2494.9,0.80131]
[1748655629819,0.00601528,2495.3,2494.6,2.5509]
[1748655630126,5.28e-06,2495.3,2495.2,0.80123]
[1748655630420,5.28e-06,2495.3,2495.2,3.35213]
[1748655631514,5.28e-06,2495.3,2495.2,8.35213]
[1748655631821,5.28e-06,2495.3,2495.2,3.35213]
[1748655632410,3.20780528,2495.3,2494.8,0.80134]
[1748655632613,0.80136,2494.8,2494.7,0.00601528]
[1748655632817,0.80134,2494.9,2494.7,0.00601528]
[1748655633018,3.35256,2494.8,2494.7,0.00601528]
[1748655633726,8.35256,2494.8,2494.7,0.00601528]
[1748655634824,2.5512,2494.8,2494.7,0.80741528]
[1748655635018,2.5512,2494.8,2494.7,0.00601528]
[1748655635217,3.35256,2494.8,2494.7,0.00601528]
[1748655635416,3.2078,2495.0,2494.7,0.00601528]
[1748655635724,2.5646,2495.1,2495.0,0.8013]
[1748655636023,2.5646,2495.1,2494.7,0.00601528]
[1748655636223,3.2078,2495.0,2494.7,0.00601528]
[1748655636420,0.80136,2494.8,2494.7,0.00601528]
[1748655636621,2.5646,2494.9,2494.7,0.00601528]
[1748655637216,0.80136,2494.8,2494.7,0.00601528]
[1748655637418,2.5646,2494.9,2494.7,0.00601528]
[1748655637625,0.80136,2494.8,2494.7,0.00601528]
[1748655638118,3.20780528,2495.3,2495.2,0.80123]
[1748655638322,5.28e-06,2495.3,2495.2,0.80123]
[1748655638719,5.28e-06,2495.3,2495.1,3.2078]
[1748655638720,5.28e-06,2495.3,2495.1,0.80125]
[1748655638924,5.28e-06,2495.3,2495.2,0.80123]
[1748655639831,5.28e-06,2495.3,2495.1,3.2078]
[1748655640026,5.28e-06,2495.3,2495.1,0.80124]
[1748655640328,5.28e-06,2495.3,2495.1,4.00905]
[1748655640528,5.28e-06,2495.3,2495.2,0.80123]
[1748655640732,5.28e-06,2495.3,2495.1,3.2078]
[1748655640916,5.28e-06,2495.3,2494.7,0.00601528]
[1748655641122,3.20780528,2495.3,2494.7,0.00601528]
[1748655641321,2.6927,2495.2,2494.7,0.00601528]
[1748655641515,0.80127,2495.1,2494.7,0.80739528]
[1748655641729,2.6927,2495.0,2494.7,0.00601528]
[1748655642021,3.49402,2495.0,2494.7,0.00601528]
[1748655642329,2.6927,2495.0,2494.7,3.40400528]
[1748655642625,0.80136,2494.8,2494.7,0.00601528]
[1748655643018,5.80136,2494.8,2494.7,0.00601528]
[1748655643418,0.80136,2494.8,2494.7,0.00601528]
[1748655643821,5.0,2494.8,2494.1,0.80157]
[1748655644025,0.80149,2494.4,2493.9,2.6455]
[1748655644223,3.2078,2494.5,2493.9,3.44713]
[1748655644424,2.6124,2494.3,2494.1,0.80158]
[1748655644728,0.80151,2494.4,2494.1,0.80158]
[1748655645022,0.2004,2494.3,2494.1,3.2078]
[1748655645228,1.00194,2494.3,2494.0,0.8016]
[1748655645621,2.6124,2494.2,2494.1,0.80159]
[1748655645818,0.2004,2494.3,2493.9,2.6455]
[1748655646023,0.2004,2494.3,2494.2,0.80155]
[1748655646515,0.2004,2494.3,2494.2,5.80155]
[1748655646921,0.03368422,2494.3,2494.2,5.80155]
[1748655647628,0.03368422,2494.3,2494.2,0.80155]
[1748655647830,0.03368422,2494.3,2494.0,3.2078]
[1748655648021,0.03368422,2494.3,2494.1,2.6692]
[1748655648218,0.83522422,2494.3,2494.0,3.2078]
[1748655648424,2.5198,2494.2,2493.7,3.2078]
[1748655648625,5.7276,2494.2,2493.9,0.80164]
[1748655648932,5.7276,2494.2,2493.6,2.6692]
[1748655648933,5.7276,2494.2,2493.8,2.6692]
[1748655649229,2.5198,2494.2,2494.0,0.80162]
[1748655649626,0.03368422,2494.3,2494.2,0.80156]
[1748655650435,0.03368422,2494.3,2493.6,14.5878]
[1748655650633,0.03368422,2494.3,2494.1,2.6495]
[1748655650930,0.03368422,2494.3,2494.2,0.80156]
[1748655651323,0.03368422,2494.3,2494.1,3.45107]
[1748655651636,0.03368422,2494.3,2494.0,3.2078]
[1748655651637,0.03368422,2494.3,2494.2,3.45106]
[1748655651823,0.03368422,2494.3,2494.0,3.2078]
[1748655652022,0.03368422,2494.3,2494.2,0.80156]
[1748655652231,3.24148422,2494.3,2493.8,0.80167]
[1748655652432,0.80156,2494.2,2493.9,0.80165]
[1748655652630,0.80164,2494.0,2493.7,3.40231]
[1748655652828,0.80161,2494.1,2493.8,0.80167]
[1748655653031,2.7365,2494.2,2494.0,0.80161]
[1748655653032,3.53807,2494.2,2494.0,0.80161]
[1748655653331,2.7365,2494.2,2493.6,14.5878]
[1748655653525,3.2078,2493.7,2493.6,11.38]
[1748655653726,3.2078,2493.7,2493.6,12.18175]
[1748655653932,0.00601528,2493.9,2493.8,0.80168]
[1748655654230,0.00601528,2493.9,2493.7,2.6006]
[1748655654432,0.00601528,2493.9,2493.8,0.80168]
[1748655655131,0.00601528,2493.9,2493.7,3.4023]
[1748655655329,3.2078,2493.8,2493.6,11.38]
[1748655655532,2.6347,2493.7,2493.6,11.38]
[1748655655833,3.43644,2493.7,2493.4,0.80179]
[1748655656023,2.6347,2493.7,2493.4,0.8018]
[1748655656229,2.6347,2493.7,2493.2,4.00966]
[1748655656531,3.43643,2493.7,2493.2,3.2078]
[1748655656837,0.80179,2493.5,2493.2,3.2078]
[1748655657035,2.6347,2493.4,2493.2,4.00966]
[1748655657233,0.80184,2493.3,2493.1,2.5888]
[1748655657533,0.802,2492.8,2492.7,3.93343983]
[1748655657724,3.2078,2493.2,2492.7,3.93343983]
[1748655657725,0.80196,2493.0,2492.7,3.93343983]
[1748655657925,3.4367,2492.9,2492.7,3.93343983]
[1748655658127,0.802,2492.8,2492.7,3.93343983]
[1748655658333,0.802,2492.8,2492.4,5.50681576]
[1748655658334,0.8021,2492.5,2492.4,5.50681576]
[1748655658632,0.80218,2492.3,2491.9,0.80228]
[1748655658832,0.80819528,2492.3,2491.7,47.60030503]
[1748655659133,2.5582,2492.2,2492.0,0.80226]
[1748655659329,2.5582,2492.2,2491.7,41.21234]
[1748655659535,2.5582,2492.2,2491.7,40.41]
[1748655659832,2.5582,2492.2,2491.4,3.2078]
[1748655660033,3.2078,2491.5,2490.6,10.02944675]
[1748655660231,2.5582,2491.4,2490.9,3.2078]
[1748655660440,2.5582,2491.4,2490.6,3.2078]
[1748655660636,2.5582,2491.4,2490.8,2.5138]
[1748655660826,3.2078,2491.8,2491.7,0.80236]
[1748655661139,3.21381528,2492.3,2492.2,0.8022]
[1748655661341,0.00601528,2492.3,2492.2,0.8022]
[1748655661731,0.00601528,2492.3,2492.2,3.4713]
[1748655662034,3.2078,2493.3,2492.2,7.6691]
[1748655662236,3.2078,2493.3,2493.1,0.80189]
[1748655662437,3.2078,2493.6,2492.7,2.0051]
[1748655662637,3.2078,2493.6,2492.5,11.077]
[1748655662638,2.6492,2493.5,2492.9,3.2078]
[1748655662841,2.6492,2493.5,2493.4,0.80181]
[1748655663141,0.08020854,2493.5,2493.4,0.80181]
[1748655663330,0.08020854,2493.5,2493.3,2.6691]
[1748655663632,0.08020854,2493.5,2493.4,0.80181]
[1748655664039,0.08020854,2493.5,2493.4,3.47091]
[1748655664232,2.6492,2494.2,2493.4,7.6691]
[1748655664439,0.08018924,2494.1,2493.7,3.2078]
[1748655664633,0.08018924,2494.1,2493.5,3.2078]
[1748655664837,0.08018924,2494.1,2493.5,5.8271]
[1748655665141,5.7517,2494.0,2493.5,3.42106]
[1748655665342,5.75771528,2494.0,2493.4,10.774]
[1748655665545,2.54991528,2494.0,2493.5,0.80176]
[1748655665736,2.54991528,2494.0,2493.4,10.774]
[1748655665938,2.54991528,2494.0,2493.6,0.80172]
[1748655666136,0.2004,2493.9,2493.6,0.80173]
[1748655666343,2.5439,2493.8,2493.2,3.21381528]
[1748655666538,2.5439,2493.8,2493.4,0.80179]
[1748655666836,2.5439,2493.8,2493.2,3.21381528]
[1748655667239,0.2004,2493.9,2493.8,0.80168]
[1748655667442,5.28e-06,2494.0,2493.9,0.80165]
[1748655667634,2.555,2494.6,2494.5,0.80146]
[1748655667837,3.2078,2494.9,2494.8,0.80136]
[1748655668139,3.2078,2494.9,2494.0,2.5555]
[1748655668140,3.2078,2495.3,2495.2,0.80123]
[1748655668440,5.7628,2495.3,2495.0,0.80128]
[1748655668641,5.7628,2495.3,2494.9,0.00601528]
[1748655669442,3.2078,2495.3,2495.2,0.80123]
[1748655669647,0.00601528,2495.4,2495.3,0.8012]
[1748655670242,0.00601528,2495.4,2495.2,2.5555]
[1748655670543,0.00601528,2495.4,2495.3,4.009]
[1748655670846,0.00601528,2495.4,2495.3,14.484]
[1748655671046,0.00601528,2495.4,2495.3,11.2762]
[1748655671245,0.00601528,2495.4,2495.3,14.484]
[1748655671447,0.00601528,2495.4,2495.3,19.484]
[1748655671648,0.00601528,2495.4,2495.3,14.484]
[1748655671841,0.00601528,2495.4,2495.3,19.484]
[1748655672244,3.2078,2496.0,2495.3,18.6828]
[1748655672444,3.2078,2496.0,2495.3,13.6828]
[1748655672951,3.2078,2496.0,2495.9,0.80101]
[1748655673153,2.72851528,2496.2,2495.3,13.6828]
[1748655673341,2.80863706,2496.2,2495.6,3.2078]
[1748655673547,0.08613706,2496.2,2496.1,0.80094]
[1748655673747,0.08613706,2496.2,2496.1,11.27294]
[1748655674750,0.08613706,2496.2,2496.1,10.472]
[1748655674945,0.08613706,2496.2,2495.9,3.2078]
[1748655674946,0.80107,2495.8,2495.6,3.2078]
[1748655675148,3.2078,2495.9,2494.9,0.00601528]
[1748655675347,3.2078,2495.2,2494.9,0.00601528]
[1748655675653,2.6596,2495.8,2495.0,0.8013]